[Event "Titled Tuesday Blitz July 26 Early 2022"]
[White "Malyi, Viacheslav"]
[Black "Jaskolka, Tomasz"]
[WhiteFideId "14123983"]
[BlackFideId "1170791"]
[WhiteElo "2210"]
[BlackElo "2073"]
[Result "1-0"]
[Round "05"]
[TimeControl "180+1"]
[Date "2022.07.27"]
[WhiteClock "0:00:08"]
[BlackClock "0:00:05"]

1. e4 {[%clk 0:02:56]}  c5 {[%clk 0:03:00]} 2. Nf3 {[%clk 0:02:56]}  e6 {[%clk 0:03:00]} 3. d4 {[%clk 0:02:53]}  cxd4 {[%clk 0:03:01]} 4. Nxd4 {[%clk 0:02:54]}  Nc6 {[%clk 0:03:01]} 5. Nc3 {[%clk 0:02:54]}  Qc7 {[%clk 0:03:01]} 6. Be3 {[%clk 0:02:54]}  a6 {[%clk 0:03:01]} 7. Qd2 {[%clk 0:02:54]}  Nf6 {[%clk 0:02:55]} 8. f3 {[%clk 0:02:52]}  b5 {[%clk 0:02:49]} 9. Nxc6 {[%clk 0:02:49]}  Qxc6 {[%clk 0:02:47]} 10. O-O-O {[%clk 0:02:49]}  Bb4 {[%clk 0:02:43]} 11. a3 {[%clk 0:02:42]}  Bxc3 {[%clk 0:02:41]} 12. Qxc3 {[%clk 0:02:43]}  Qxc3 {[%clk 0:02:41]} 13. bxc3 {[%clk 0:02:44]}  Bb7 {[%clk 0:02:38]} 14. Bc5 {[%clk 0:02:24]}  d5 {[%clk 0:02:35]} 15. e5 {[%clk 0:02:20]}  Nd7 {[%clk 0:02:34]} 16. Bd4 {[%clk 0:02:20]}  f6 {[%clk 0:02:31]} 17. f4 {[%clk 0:02:20]}  Kf7 {[%clk 0:02:30]} 18. Bd3 {[%clk 0:02:19]}  f5 {[%clk 0:02:27]} 19. Kd2 {[%clk 0:02:14]}  Rhc8 {[%clk 0:02:25]} 20. Ra1 {[%clk 0:02:13]}  Nc5 {[%clk 0:02:25]} 21. Rhg1 {[%clk 0:02:07]}  Ne4+ {[%clk 0:02:11]} 22. Bxe4 {[%clk 0:02:04]}  dxe4 {[%clk 0:02:12]} 23. g4 {[%clk 0:02:02]}  g6 {[%clk 0:02:09]} 24. a4 {[%clk 0:01:59]}  Bd5 {[%clk 0:02:09]} 25. h3 {[%clk 0:01:46]}  Rc4 {[%clk 0:01:51]} 26. axb5 {[%clk 0:01:44]}  axb5 {[%clk 0:01:52]} 27. Rxa8 {[%clk 0:01:42]}  Bxa8 {[%clk 0:01:52]} 28. Ra1 {[%clk 0:01:41]}  Bd5 {[%clk 0:01:51]} 29. Ra7+ {[%clk 0:01:25]}  Kg8 {[%clk 0:01:52]} 30. Bb6 {[%clk 0:00:58]}  fxg4 {[%clk 0:01:35]} 31. hxg4 {[%clk 0:00:57]}  h5 {[%clk 0:01:35]} 32. gxh5 {[%clk 0:00:52]}  gxh5 {[%clk 0:01:36]} 33. Bd8 {[%clk 0:00:49]}  e3+ {[%clk 0:01:31]} 34. Kxe3 {[%clk 0:00:48]}  Re4+ {[%clk 0:01:23]} 35. Kd2 {[%clk 0:00:48]}  Rxf4 {[%clk 0:01:23]} 36. Bf6 {[%clk 0:00:48]}  h4 {[%clk 0:01:23]} 37. Rg7+ {[%clk 0:00:44]}  Kf8 {[%clk 0:01:23]} 38. Rh7 {[%clk 0:00:44]}  Rf2+ {[%clk 0:01:23]} 39. Ke3 {[%clk 0:00:40]}  Rxc2 {[%clk 0:01:21]} 40. Kd4 {[%clk 0:00:32]}  Ke8 {[%clk 0:00:45]} 41. Rxh4 {[%clk 0:00:24]}  Kd7 {[%clk 0:00:45]} 42. Rh8 {[%clk 0:00:20]}  Kc7 {[%clk 0:00:38]} 43. Re8 {[%clk 0:00:17]}  Bc4 {[%clk 0:00:37]} 44. Kc5 {[%clk 0:00:16]}  Rxc3 {[%clk 0:00:29]} 45. Re7+ {[%clk 0:00:16]}  Kc8 {[%clk 0:00:29]} 46. Kb6 {[%clk 0:00:12]}  Kd8 {[%clk 0:00:07]} 47. Rxe6+ {[%clk 0:00:11]}  Kd7 {[%clk 0:00:08]} 48. Re7+ {[%clk 0:00:10]}  Kd8 {[%clk 0:00:08]} 49. Rc7+ {[%clk 0:00:08]}  Ke8 {[%clk 0:00:09]} 50. e6 {[%clk 0:00:08]}  Bxe6 {[%clk 0:00:02]} 51. Bxc3 {[%clk 0:00:07]}  b4 {[%clk 0:00:03]} 52. Bxb4 {[%clk 0:00:07]}  Kd8 {[%clk 0:00:03]} 53. Re7 {[%clk 0:00:07]}  Bd7 {[%clk 0:00:03]} 54. Re3 {[%clk 0:00:08]}  Bc8 {[%clk 0:00:03]} 55. Kc5 {[%clk 0:00:08]}  Kc7 {[%clk 0:00:04]} 56. Re7+ {[%clk 0:00:08]}  Kd8 {[%clk 0:00:04]} 57. Rg7 {[%clk 0:00:08]}  Bd7 {[%clk 0:00:04]} 58. Kd6 {[%clk 0:00:09]}  Be8 {[%clk 0:00:04]} 59. Bc3 {[%clk 0:00:09]}  Kc8 {[%clk 0:00:05]} 60. Bf6 {[%clk 0:00:08]}  Kb8 {[%clk 0:00:05]} 61. Kc5 {[%clk 0:00:07]}  Kc8 {[%clk 0:00:05]} 62. Kb6 {[%clk 0:00:08]}  Bh5 {[%clk 0:00:02]} 63. Rc7+ {[%clk 0:00:07]}  Kb8 {[%clk 0:00:03]} 64. Rd7 {[%clk 0:00:07]}  Bg4 {[%clk 0:00:03]} 65. Rd8+ {[%clk 0:00:08]}  Bc8 {[%clk 0:00:04]} 66. Rf8 {[%clk 0:00:08]}  Ka8 {[%clk 0:00:05]} 67. Rxc8# {[%clk 0:00:08]} 1-0


[Site "https://www.chess.com"]

[Event "Titled Tuesday Blitz July 26 Early 2022"]
[White "Martinez Alcantara, Jose Eduardo"]
[Black "Yuan, Qingyu"]
[WhiteFideId "3805662"]
[BlackFideId "8609772"]
[WhiteElo "2703"]
[BlackElo "2359"]
[Result "1-0"]
[Round "05"]
[TimeControl "180+1"]
[Date "2022.07.26"]
[WhiteClock "0:00:12"]
[BlackClock "0:00:05"]

1. e4 {[%clk 0:03:00]}  c6 {[%clk 0:03:00]} 2. Nf3 {[%clk 0:02:58]}  d5 {[%clk 0:03:01]} 3. d3 {[%clk 0:02:59]}  dxe4 {[%clk 0:02:59]} 4. dxe4 {[%clk 0:03:00]}  Qxd1+ {[%clk 0:02:59]} 5. Kxd1 {[%clk 0:03:00]}  Nf6 {[%clk 0:03:00]} 6. Nfd2 {[%clk 0:03:00]}  g6 {[%clk 0:03:00]} 7. f3 {[%clk 0:03:00]}  Bh6 {[%clk 0:03:00]} 8. Nb3 {[%clk 0:02:58]}  Bxc1 {[%clk 0:03:00]} 9. Kxc1 {[%clk 0:02:59]}  g5 {[%clk 0:02:48]} 10. N1d2 {[%clk 0:02:56]}  h5 {[%clk 0:02:37]} 11. c3 {[%clk 0:02:49]}  b6 {[%clk 0:02:33]} 12. Kc2 {[%clk 0:02:48]}  Nbd7 {[%clk 0:02:13]} 13. Nd4 {[%clk 0:02:36]}  Bb7 {[%clk 0:02:09]} 14. Nf5 {[%clk 0:02:24]}  Rg8 {[%clk 0:02:03]} 15. a4 {[%clk 0:02:18]}  Ne5 {[%clk 0:01:44]} 16. Nc4 {[%clk 0:02:11]}  Nxc4 {[%clk 0:01:33]} 17. Bxc4 {[%clk 0:02:11]}  Bc8 {[%clk 0:01:33]} 18. Nd4 {[%clk 0:02:09]}  Bd7 {[%clk 0:01:29]} 19. e5 {[%clk 0:02:09]}  Nh7 {[%clk 0:01:22]} 20. e6 {[%clk 0:02:02]}  fxe6 {[%clk 0:01:21]} 21. Bxe6 {[%clk 0:01:46]}  Bxe6 {[%clk 0:01:08]} 22. Nxe6 {[%clk 0:01:47]}  Kf7 {[%clk 0:01:08]} 23. Rhe1 {[%clk 0:01:43]}  Rg6 {[%clk 0:01:06]} 24. Nd4 {[%clk 0:01:39]}  Rd8 {[%clk 0:01:01]} 25. Rad1 {[%clk 0:01:19]}  Nf8 {[%clk 0:00:16]} 26. Nxc6 {[%clk 0:01:07]}  Rxd1 {[%clk 0:00:14]} 27. Ne5+ {[%clk 0:01:07]}  Kf6 {[%clk 0:00:09]} 28. Kxd1 {[%clk 0:01:07]}  Rg7 {[%clk 0:00:08]} 29. Nc6 {[%clk 0:01:01]}  e6 {[%clk 0:00:08]} 30. Kc2 {[%clk 0:01:01]}  Ng6 {[%clk 0:00:06]} 31. g3 {[%clk 0:00:56]}  Rc7 {[%clk 0:00:06]} 32. Nd4 {[%clk 0:00:57]}  Ne5 {[%clk 0:00:06]} 33. f4 {[%clk 0:00:54]}  gxf4 {[%clk 0:00:05]} 34. gxf4 {[%clk 0:00:55]}  Ng4 {[%clk 0:00:06]} 35. Rxe6+ {[%clk 0:00:54]}  Kf7 {[%clk 0:00:06]} 36. Re2 {[%clk 0:00:50]}  Nf6 {[%clk 0:00:04]} 37. Re5 {[%clk 0:00:46]}  Kg6 {[%clk 0:00:02]} 38. Rg5+ {[%clk 0:00:45]}  Kf7 {[%clk 0:00:02]} 39. Kd3 {[%clk 0:00:45]}  Rd7 {[%clk 0:00:02]} 40. h3 {[%clk 0:00:45]}  Nd5 {[%clk 0:00:03]} 41. Ke4 {[%clk 0:00:42]}  Nf6+ {[%clk 0:00:04]} 42. Kf3 {[%clk 0:00:43]}  Re7 {[%clk 0:00:04]} 43. Re5 {[%clk 0:00:42]}  Rd7 {[%clk 0:00:04]} 44. a5 {[%clk 0:00:35]}  Kg6 {[%clk 0:00:05]} 45. Rg5+ {[%clk 0:00:33]}  Kf7 {[%clk 0:00:05]} 46. a6 {[%clk 0:00:34]}  Rd6 {[%clk 0:00:04]} 47. Rf5 {[%clk 0:00:30]}  Kg6 {[%clk 0:00:04]} 48. Re5 {[%clk 0:00:30]}  Kf7 {[%clk 0:00:04]} 49. f5 {[%clk 0:00:29]}  b5 {[%clk 0:00:04]} 50. Rxb5 {[%clk 0:00:27]}  Rxa6 {[%clk 0:00:05]} 51. Rb7+ {[%clk 0:00:27]}  Ke8 {[%clk 0:00:05]} 52. Kf4 {[%clk 0:00:24]}  Ra5 {[%clk 0:00:04]} 53. Kg5 {[%clk 0:00:20]}  Nd7 {[%clk 0:00:03]} 54. Rc7 {[%clk 0:00:17]}  h4 {[%clk 0:00:02]} 55. Kxh4 {[%clk 0:00:15]}  Rd5 {[%clk 0:00:01]} 56. Kg5 {[%clk 0:00:15]}  Ne5 {[%clk 0:00:02]} 57. Rxa7 {[%clk 0:00:14]}  Nf7+ {[%clk 0:00:02]} 58. Kf4 {[%clk 0:00:14]}  Nd6 {[%clk 0:00:02]} 59. h4 {[%clk 0:00:13]}  Kf8 {[%clk 0:00:03]} 60. h5 {[%clk 0:00:13]}  Kg8 {[%clk 0:00:03]} 61. h6 {[%clk 0:00:14]}  Ne8 {[%clk 0:00:02]} 62. Ra8 {[%clk 0:00:14]}  Kf7 {[%clk 0:00:03]} 63. h7 {[%clk 0:00:14]}  Ra5 {[%clk 0:00:02]} 64. Rxa5 {[%clk 0:00:13]}  Nf6 {[%clk 0:00:03]} 65. Ra7+ {[%clk 0:00:13]}  Nd7 {[%clk 0:00:02]} 66. Rxd7+ {[%clk 0:00:12]}  Ke8 {[%clk 0:00:02]} 67. h8=Q+ {[%clk 0:00:12]}  Kxd7 {[%clk 0:00:02]} 68. Qe5 {[%clk 0:00:12]}  Kc8 {[%clk 0:00:03]} 69. f6 {[%clk 0:00:12]}  Kb7 {[%clk 0:00:04]} 70. f7 {[%clk 0:00:12]}  Kb6 {[%clk 0:00:04]} 71. f8=Q {[%clk 0:00:12]}  Kb7 {[%clk 0:00:05]} 72. Qff6 {[%clk 0:00:12]} 1-0


[Site "https://www.chess.com"]

[Event "Titled Tuesday Blitz July 26 Early 2022"]
[White "McCoy, Owen"]
[Black "Vivekananthan, Anish"]
[WhiteFideId "30924502"]
[BlackFideId "2090775"]
[WhiteElo "2536"]
[BlackElo "2758"]
[Result "0-1"]
[Round "05"]
[TimeControl "180+1"]
[Date "2022.07.27"]
[WhiteClock "0:00:04"]
[BlackClock "0:00:47"]

1. d4 {[%clk 0:03:00]}  d5 {[%clk 0:02:59]} 2. c4 {[%clk 0:03:00]}  c6 {[%clk 0:03:00]} 3. Nf3 {[%clk 0:03:00]}  Nf6 {[%clk 0:03:01]} 4. Nc3 {[%clk 0:02:55]}  e6 {[%clk 0:03:00]} 5. e3 {[%clk 0:02:45]}  Nbd7 {[%clk 0:02:54]} 6. Bd3 {[%clk 0:02:34]}  dxc4 {[%clk 0:02:54]} 7. Bxc4 {[%clk 0:02:34]}  b5 {[%clk 0:02:53]} 8. Bb3 {[%clk 0:02:26]}  Bd6 {[%clk 0:02:53]} 9. O-O {[%clk 0:02:19]}  b4 {[%clk 0:02:52]} 10. Na4 {[%clk 0:02:14]}  O-O {[%clk 0:02:46]} 11. Re1 {[%clk 0:02:07]}  c5 {[%clk 0:02:40]} 12. Bd2 {[%clk 0:02:03]}  Rb8 {[%clk 0:02:17]} 13. Rc1 {[%clk 0:01:39]}  Qe7 {[%clk 0:02:02]} 14. e4 {[%clk 0:01:16]}  e5 {[%clk 0:01:59]} 15. Nh4 {[%clk 0:01:16]}  g6 {[%clk 0:01:51]} 16. dxe5 {[%clk 0:01:00]}  Nxe5 {[%clk 0:01:16]} 17. f4 {[%clk 0:00:12]}  Nfg4 {[%clk 0:01:13]} 18. Nf3 {[%clk 0:00:10]}  Nd3 {[%clk 0:01:11]} 19. e5 {[%clk 0:00:10]}  Bc7 {[%clk 0:01:11]} 20. h3 {[%clk 0:00:05]}  Nxc1 {[%clk 0:01:07]} 21. Qxc1 {[%clk 0:00:03]}  Nh6 {[%clk 0:01:05]} 22. Be3 {[%clk 0:00:03]}  Bb6 {[%clk 0:01:04]} 23. Nxc5 {[%clk 0:00:03]}  Bb7 {[%clk 0:00:49]} 24. Bf2 {[%clk 0:00:03]}  Bxf3 {[%clk 0:00:48]} 25. gxf3 {[%clk 0:00:03]}  Rfc8 {[%clk 0:00:47]} 26. f5 {[%clk 0:00:02]}  Nxf5 {[%clk 0:00:46]} 27. e6 {[%clk 0:00:03]}  f6 {[%clk 0:00:47]} 28. Nd7 {[%clk 0:00:03]}  Bxf2+ {[%clk 0:00:46]} 29. Kxf2 {[%clk 0:00:03]}  Rxc1 {[%clk 0:00:47]} 30. Nxf6+ {[%clk 0:00:04]}  Qxf6 {[%clk 0:00:46]} 31. e7+ {[%clk 0:00:04]}  Kg7 {[%clk 0:00:47]} 32. e8=Q {[%clk 0:00:04]}  Rxe8 {[%clk 0:00:47]} 0-1


[Site "https://www.chess.com"]

[Event "Titled Tuesday Blitz July 26 Early 2022"]
[White "Nazari, Arad"]
[Black "Castaneda, Jhon David"]
[WhiteFideId "12577324"]
[BlackFideId "4405048"]
[WhiteElo "2129"]
[BlackElo "2152"]
[Result "1-0"]
[Round "05"]
[TimeControl "180+1"]
[Date "2022.07.26"]
[WhiteClock "0:00:24"]
[BlackClock "0:00:30"]

1. e4 {[%clk 0:03:00]}  c5 {[%clk 0:02:59]} 2. Nf3 {[%clk 0:03:01]}  Nc6 {[%clk 0:02:59]} 3. Bb5 {[%clk 0:03:01]}  g6 {[%clk 0:02:59]} 4. Bxc6 {[%clk 0:03:00]}  dxc6 {[%clk 0:02:58]} 5. d3 {[%clk 0:03:01]}  Bg7 {[%clk 0:02:58]} 6. O-O {[%clk 0:03:01]}  Nf6 {[%clk 0:02:58]} 7. h3 {[%clk 0:03:00]}  Nd7 {[%clk 0:02:58]} 8. a4 {[%clk 0:02:58]}  a5 {[%clk 0:02:57]} 9. Na3 {[%clk 0:02:56]}  e5 {[%clk 0:02:46]} 10. Be3 {[%clk 0:02:54]}  O-O {[%clk 0:02:43]} 11. Qd2 {[%clk 0:02:52]}  Re8 {[%clk 0:02:42]} 12. c3 {[%clk 0:02:43]}  b6 {[%clk 0:02:38]} 13. Rad1 {[%clk 0:02:37]}  Ba6 {[%clk 0:02:36]} 14. Rfe1 {[%clk 0:02:38]}  Nf8 {[%clk 0:02:30]} 15. d4 {[%clk 0:02:29]}  exd4 {[%clk 0:02:24]} 16. cxd4 {[%clk 0:02:29]}  cxd4 {[%clk 0:02:14]} 17. Bxd4 {[%clk 0:02:21]}  Ne6 {[%clk 0:02:06]} 18. Bxg7 {[%clk 0:02:13]}  Qxd2 {[%clk 0:02:04]} 19. Rxd2 {[%clk 0:02:14]}  Kxg7 {[%clk 0:02:04]} 20. Rd6 {[%clk 0:02:12]}  Rac8 {[%clk 0:01:57]} 21. Ne5 {[%clk 0:02:01]}  Nc5 {[%clk 0:01:49]} 22. f4 {[%clk 0:01:20]}  Nxa4 {[%clk 0:01:21]} 23. Nxc6 {[%clk 0:00:52]}  Nxb2 {[%clk 0:01:08]} 24. Ne5 {[%clk 0:00:51]}  Na4 {[%clk 0:01:02]} 25. Rd7 {[%clk 0:00:50]}  Rf8 {[%clk 0:01:01]} 26. Rb1 {[%clk 0:00:46]}  Nc5 {[%clk 0:00:59]} 27. Ra7 {[%clk 0:00:45]}  Bb7 {[%clk 0:00:47]} 28. Rxb6 {[%clk 0:00:40]}  Bxe4 {[%clk 0:00:47]} 29. Rxa5 {[%clk 0:00:38]}  Ne6 {[%clk 0:00:36]} 30. Rb4 {[%clk 0:00:34]}  Rc2 {[%clk 0:00:32]} 31. Rxe4 {[%clk 0:00:29]}  Rc1+ {[%clk 0:00:33]} 32. Kh2 {[%clk 0:00:29]}  Rc3 {[%clk 0:00:31]} 33. Nb5 {[%clk 0:00:26]}  Rc5 {[%clk 0:00:30]} 34. Nd7 {[%clk 0:00:24]} 1-0


[Site "https://www.chess.com"]

[Event "Titled Tuesday Blitz July 26 Early 2022"]
[White "Omariev, Maksim"]
[Black "Wieczorek, Oskar"]
[WhiteFideId "4193423"]
[BlackFideId "1133950"]
[WhiteElo "2502"]
[BlackElo "2330"]
[Result "0-1"]
[Round "05"]
[TimeControl "180+1"]
[Date "2022.07.27"]
[WhiteClock "0:00:09"]
[BlackClock "0:00:29"]

1. g4 {[%clk 0:02:45]}  a5 {[%clk 0:02:58]} 2. Bg2 {[%clk 0:02:45]}  Ra6 {[%clk 0:02:59]} 3. d4 {[%clk 0:02:44]}  Ra8 {[%clk 0:02:59]} 4. c4 {[%clk 0:02:43]}  e6 {[%clk 0:02:59]} 5. Nc3 {[%clk 0:02:43]}  c6 {[%clk 0:02:59]} 6. d5 {[%clk 0:02:39]}  cxd5 {[%clk 0:02:59]} 7. cxd5 {[%clk 0:02:39]}  e5 {[%clk 0:02:59]} 8. Nf3 {[%clk 0:02:01]}  d6 {[%clk 0:02:57]} 9. g5 {[%clk 0:02:00]}  Ne7 {[%clk 0:02:47]} 10. h4 {[%clk 0:01:57]}  Nd7 {[%clk 0:02:06]} 11. h5 {[%clk 0:00:58]}  Nc5 {[%clk 0:02:04]} 12. e4 {[%clk 0:00:54]}  Bd7 {[%clk 0:01:56]} 13. Be3 {[%clk 0:00:32]}  b6 {[%clk 0:01:57]} 14. Qd2 {[%clk 0:00:28]}  Nc8 {[%clk 0:01:54]} 15. O-O-O {[%clk 0:00:27]}  Qc7 {[%clk 0:01:45]} 16. Kb1 {[%clk 0:00:28]}  b5 {[%clk 0:01:45]} 17. Rc1 {[%clk 0:00:26]}  b4 {[%clk 0:01:44]} 18. Ne2 {[%clk 0:00:25]}  Qb8 {[%clk 0:01:38]} 19. Ng3 {[%clk 0:00:22]}  Nb6 {[%clk 0:01:34]} 20. Bh3 {[%clk 0:00:20]}  Bxh3 {[%clk 0:01:32]} 21. Rxh3 {[%clk 0:00:21]}  Nbd7 {[%clk 0:01:28]} 22. Rhh1 {[%clk 0:00:18]}  Qb5 {[%clk 0:01:28]} 23. Rhd1 {[%clk 0:00:13]}  Be7 {[%clk 0:01:27]} 24. g6 {[%clk 0:00:11]}  hxg6 {[%clk 0:01:25]} 25. hxg6 {[%clk 0:00:12]}  fxg6 {[%clk 0:01:25]} 26. Ng5 {[%clk 0:00:11]}  Bxg5 {[%clk 0:01:23]} 27. Bxg5 {[%clk 0:00:12]}  Nf6 {[%clk 0:01:23]} 28. f3 {[%clk 0:00:12]}  Kf7 {[%clk 0:01:22]} 29. Nf1 {[%clk 0:00:08]}  Rh3 {[%clk 0:01:16]} 30. Qg2 {[%clk 0:00:06]}  Rah8 {[%clk 0:01:14]} 31. Rd2 {[%clk 0:00:03]}  Rh1 {[%clk 0:01:06]} 32. Ne3 {[%clk 0:00:03]}  Rxc1+ {[%clk 0:01:06]} 33. Kxc1 {[%clk 0:00:04]}  b3 {[%clk 0:01:04]} 34. a3 {[%clk 0:00:04]}  Na4 {[%clk 0:00:55]} 35. Kb1 {[%clk 0:00:03]}  Qc5 {[%clk 0:00:53]} 36. Qe2 {[%clk 0:00:03]}  Rh1+ {[%clk 0:00:52]} 37. Rd1 {[%clk 0:00:03]}  Rxd1+ {[%clk 0:00:41]} 38. Qxd1 {[%clk 0:00:04]}  Qb5 {[%clk 0:00:40]} 39. Qd2 {[%clk 0:00:04]}  Nc5 {[%clk 0:00:40]} 40. Nd1 {[%clk 0:00:04]}  Qf1 {[%clk 0:00:38]} 41. Be3 {[%clk 0:00:03]}  Nfd7 {[%clk 0:00:37]} 42. Kc1 {[%clk 0:00:02]}  Nd3+ {[%clk 0:00:37]} 43. Kb1 {[%clk 0:00:03]}  N3c5 {[%clk 0:00:37]} 44. Kc1 {[%clk 0:00:03]}  Qxf3 {[%clk 0:00:37]} 45. Qxa5 {[%clk 0:00:03]}  Qe2 {[%clk 0:00:31]} 46. Qd2 {[%clk 0:00:03]}  Qxd2+ {[%clk 0:00:30]} 47. Bxd2 {[%clk 0:00:04]}  Nxe4 {[%clk 0:00:30]} 48. Bb4 {[%clk 0:00:04]}  Nef6 {[%clk 0:00:30]} 49. Kd2 {[%clk 0:00:03]}  Nxd5 {[%clk 0:00:30]} 50. Bxd6 {[%clk 0:00:03]}  Ke6 {[%clk 0:00:30]} 51. Bb4 {[%clk 0:00:02]}  Nxb4 {[%clk 0:00:29]} 52. axb4 {[%clk 0:00:03]}  Kd5 {[%clk 0:00:30]} 53. Kc3 {[%clk 0:00:04]}  g5 {[%clk 0:00:29]} 54. Ne3+ {[%clk 0:00:04]}  Ke4 {[%clk 0:00:29]} 55. Nc4 {[%clk 0:00:04]}  g4 {[%clk 0:00:29]} 56. Nd6+ {[%clk 0:00:04]}  Kf3 {[%clk 0:00:28]} 57. Nf5 {[%clk 0:00:03]}  g3 {[%clk 0:00:28]} 58. Kxb3 {[%clk 0:00:03]}  g2 {[%clk 0:00:28]} 59. Nh4+ {[%clk 0:00:04]}  Kg3 {[%clk 0:00:29]} 60. Nxg2 {[%clk 0:00:05]}  Kxg2 {[%clk 0:00:30]} 61. Kc4 {[%clk 0:00:05]}  e4 {[%clk 0:00:30]} 62. Kd4 {[%clk 0:00:06]}  Kf3 {[%clk 0:00:30]} 63. b5 {[%clk 0:00:06]}  e3 {[%clk 0:00:30]} 64. Kd5 {[%clk 0:00:06]}  e2 {[%clk 0:00:30]} 65. Kc6 {[%clk 0:00:07]}  Ne5+ {[%clk 0:00:29]} 66. Kc7 {[%clk 0:00:07]}  e1=Q {[%clk 0:00:30]} 67. b6 {[%clk 0:00:07]}  Qc1+ {[%clk 0:00:29]} 68. Kb8 {[%clk 0:00:07]}  Qxb2 {[%clk 0:00:29]} 69. b7 {[%clk 0:00:08]}  Nc6+ {[%clk 0:00:29]} 70. Ka8 {[%clk 0:00:09]} 0-1


[Site "https://www.chess.com"]

[Event "Titled Tuesday Blitz July 26 Early 2022"]
[White "Prestia, Paris"]
[Black "Meshkovs, Nikita"]
[WhiteFideId "30925959"]
[BlackFideId "11602740"]
[WhiteElo "2614"]
[BlackElo "2506"]
[Result "1/2-1/2"]
[Round "05"]
[TimeControl "180+1"]
[Date "2022.07.26"]
[WhiteClock "0:00:24"]
[BlackClock "0:00:07"]

1. d4 {[%clk 0:02:50]}  Nf6 {[%clk 0:02:59]} 2. Bg5 {[%clk 0:02:49]}  d5 {[%clk 0:02:59]} 3. e3 {[%clk 0:02:49]}  Nbd7 {[%clk 0:02:57]} 4. Nd2 {[%clk 0:02:48]}  e6 {[%clk 0:02:57]} 5. Ngf3 {[%clk 0:02:46]}  Be7 {[%clk 0:02:56]} 6. Bd3 {[%clk 0:02:45]}  O-O {[%clk 0:02:57]} 7. c3 {[%clk 0:02:45]}  b6 {[%clk 0:02:50]} 8. O-O {[%clk 0:02:45]}  Bb7 {[%clk 0:02:50]} 9. Ne5 {[%clk 0:02:44]}  Nxe5 {[%clk 0:02:31]} 10. dxe5 {[%clk 0:02:45]}  Nd7 {[%clk 0:02:31]} 11. Bxe7 {[%clk 0:02:28]}  Qxe7 {[%clk 0:02:32]} 12. Nf3 {[%clk 0:02:29]}  Rad8 {[%clk 0:02:27]} 13. a4 {[%clk 0:02:23]}  a5 {[%clk 0:02:22]} 14. Bc2 {[%clk 0:02:19]}  f6 {[%clk 0:02:19]} 15. Qd4 {[%clk 0:01:45]}  f5 {[%clk 0:01:22]} 16. Qf4 {[%clk 0:01:33]}  h6 {[%clk 0:01:05]} 17. h4 {[%clk 0:01:33]}  c5 {[%clk 0:00:53]} 18. Rfd1 {[%clk 0:01:31]}  Kh7 {[%clk 0:00:50]} 19. g4 {[%clk 0:00:57]}  g6 {[%clk 0:00:50]} 20. g5 {[%clk 0:00:57]}  h5 {[%clk 0:00:46]} 21. b4 {[%clk 0:00:52]}  axb4 {[%clk 0:00:44]} 22. cxb4 {[%clk 0:00:53]}  Ba6 {[%clk 0:00:44]} 23. b5 {[%clk 0:00:53]}  Bb7 {[%clk 0:00:43]} 24. a5 {[%clk 0:00:50]}  bxa5 {[%clk 0:00:44]} 25. Rxa5 {[%clk 0:00:50]}  Ra8 {[%clk 0:00:44]} 26. Rda1 {[%clk 0:00:51]}  Rxa5 {[%clk 0:00:42]} 27. Rxa5 {[%clk 0:00:51]}  Qd8 {[%clk 0:00:42]} 28. Ra1 {[%clk 0:00:39]}  Qb6 {[%clk 0:00:41]} 29. Bd3 {[%clk 0:00:32]}  Ra8 {[%clk 0:00:32]} 30. Rxa8 {[%clk 0:00:27]}  Bxa8 {[%clk 0:00:32]} 31. Qa4 {[%clk 0:00:27]}  Bb7 {[%clk 0:00:33]} 32. Be2 {[%clk 0:00:24]}  Kg7 {[%clk 0:00:33]} 33. Kg2 {[%clk 0:00:23]}  Kf7 {[%clk 0:00:33]} 34. Kg3 {[%clk 0:00:24]}  Ke7 {[%clk 0:00:32]} 35. Kf4 {[%clk 0:00:22]}  Kd8 {[%clk 0:00:28]} 36. Nd2 {[%clk 0:00:21]}  Qc7 {[%clk 0:00:24]} 37. Nf3 {[%clk 0:00:20]}  Kc8 {[%clk 0:00:20]} 38. b6 {[%clk 0:00:16]}  Qxb6 {[%clk 0:00:18]} 39. Bb5 {[%clk 0:00:17]}  Nb8 {[%clk 0:00:16]} 40. Nd2 {[%clk 0:00:13]}  Nc6 {[%clk 0:00:09]} 41. Nf3 {[%clk 0:00:12]}  Kc7 {[%clk 0:00:09]} 42. Bxc6 {[%clk 0:00:09]}  Bxc6 {[%clk 0:00:10]} 43. Qa3 {[%clk 0:00:09]}  Kb7 {[%clk 0:00:07]} 44. Kg3 {[%clk 0:00:08]}  Bb5 {[%clk 0:00:07]} 45. Qb3 {[%clk 0:00:08]}  Be2 {[%clk 0:00:07]} 46. Qc2 {[%clk 0:00:08]}  Bxf3 {[%clk 0:00:07]} 47. Kxf3 {[%clk 0:00:09]}  Qb4 {[%clk 0:00:07]} 48. Qa2 {[%clk 0:00:09]}  c4 {[%clk 0:00:07]} 49. Ke2 {[%clk 0:00:08]}  c3 {[%clk 0:00:07]} 50. Kd3 {[%clk 0:00:08]}  Qe4+ {[%clk 0:00:05]} 51. Kxc3 {[%clk 0:00:08]}  Qxe5+ {[%clk 0:00:06]} 52. Kd2 {[%clk 0:00:08]}  Qd6 {[%clk 0:00:04]} 53. Qb2+ {[%clk 0:00:08]}  Kc6 {[%clk 0:00:04]} 54. Qg7 {[%clk 0:00:09]}  e5 {[%clk 0:00:05]} 55. Qf6 {[%clk 0:00:09]}  Qxf6 {[%clk 0:00:05]} 56. gxf6 {[%clk 0:00:10]}  Kd6 {[%clk 0:00:06]} 57. f4 {[%clk 0:00:11]}  exf4 {[%clk 0:00:05]} 58. exf4 {[%clk 0:00:12]}  Ke6 {[%clk 0:00:05]} 59. Kd3 {[%clk 0:00:13]}  Kxf6 {[%clk 0:00:05]} 60. Kd4 {[%clk 0:00:14]}  Ke6 {[%clk 0:00:05]} 61. Kc5 {[%clk 0:00:14]}  g5 {[%clk 0:00:05]} 62. fxg5 {[%clk 0:00:14]}  f4 {[%clk 0:00:06]} 63. Kd4 {[%clk 0:00:14]}  Kf5 {[%clk 0:00:05]} 64. Kd3 {[%clk 0:00:15]}  Ke5 {[%clk 0:00:05]} 65. Ke2 {[%clk 0:00:15]}  d4 {[%clk 0:00:05]} 66. Kd3 {[%clk 0:00:15]}  Kd5 {[%clk 0:00:03]} 67. Kd2 {[%clk 0:00:16]}  Ke6 {[%clk 0:00:02]} 68. Kd3 {[%clk 0:00:17]}  Ke5 {[%clk 0:00:03]} 69. Kd2 {[%clk 0:00:17]}  Kf5 {[%clk 0:00:03]} 70. Ke2 {[%clk 0:00:17]}  Ke5 {[%clk 0:00:03]} 71. Kd3 {[%clk 0:00:17]}  f3 {[%clk 0:00:03]} 72. Kd2 {[%clk 0:00:18]}  Kf5 {[%clk 0:00:04]} 73. Kd3 {[%clk 0:00:17]}  Ke5 {[%clk 0:00:03]} 74. Kd2 {[%clk 0:00:18]}  Kf5 {[%clk 0:00:03]} 75. Kd3 {[%clk 0:00:18]}  Ke6 {[%clk 0:00:02]} 76. Kd2 {[%clk 0:00:18]}  Kd5 {[%clk 0:00:02]} 77. Kd3 {[%clk 0:00:19]}  Kd6 {[%clk 0:00:02]} 78. Kd2 {[%clk 0:00:19]}  Ke7 {[%clk 0:00:03]} 79. Kd3 {[%clk 0:00:19]}  Kf7 {[%clk 0:00:03]} 80. Kd2 {[%clk 0:00:20]}  Kg6 {[%clk 0:00:04]} 81. Kd3 {[%clk 0:00:21]}  Kg7 {[%clk 0:00:04]} 82. Kd2 {[%clk 0:00:21]}  Kf8 {[%clk 0:00:05]} 83. Kd3 {[%clk 0:00:22]}  Kf7 {[%clk 0:00:06]} 84. Kd2 {[%clk 0:00:22]}  Ke7 {[%clk 0:00:06]} 85. Kd3 {[%clk 0:00:23]}  Ke6 {[%clk 0:00:07]} 86. Kd2 {[%clk 0:00:23]}  Kd6 {[%clk 0:00:07]} 87. Kd3 {[%clk 0:00:24]}  Ke5 {[%clk 0:00:07]} 1/2-1/2


[Site "https://www.chess.com"]